fUSD/lending_fUSD_20260418
["ID","MTS","AMOUNT","RATE_DAILY","PERIOD"]
[420680705,1776457918893,-700.0,0.00033515,60]
[420680706,1776457918903,-1200.0,0.00033515,60]
[420680707,1776457918912,-600.0,0.00033515,60]
[420680708,1776457918921,-700.0,0.00033515,60]
[420680709,1776457918931,-600.0,0.00033515,60]
[420680710,1776457918940,-1200.0,0.00033515,60]
[420680711,1776457918949,-700.0,0.00033515,60]
[420680712,1776457918959,-1200.0,0.00033515,60]
[420680713,1776457918969,-600.0,0.00033515,60]
[420680714,1776457918978,-700.0,0.00033515,60]
[420680715,1776457918987,-1200.0,0.00033515,60]
[420680716,1776457919000,-600.0,0.00033515,60]
[420680717,1776457919010,-1200.0,0.00033515,60]
[420680718,1776457919019,-600.0,0.00033515,60]
[420680719,1776457919028,-600.0,0.00033515,60]
[420680720,1776457919037,-1200.0,0.00033515,60]
[420680721,1776457919047,-600.0,0.00033515,60]
[420680722,1776457919055,-1200.0,0.00033515,60]
[420680723,1776457919065,-600.0,0.00033515,60]
[420680724,1776457919075,-1200.0,0.00033515,60]
[420680725,1776457919085,-600.0,0.00033515,60]
[420680726,1776457919095,-1200.0,0.00033515,60]
[420680727,1776457919105,-600.0,0.00033515,60]
[420680728,1776457919115,-1200.0,0.00033515,60]
[420680729,1776457919124,-250.0,0.00033515,60]
[420680730,1776457919133,-600.0,0.00033515,60]
[420680731,1776457919143,-1200.0,0.00033515,60]
[420680732,1776457919152,-888.4266612,0.00033515,60]
[420680733,1776457919161,-600.0,0.00033515,60]
[420680734,1776457919170,-1200.0,0.00033515,60]
[420680735,1776457919179,-600.0,0.00033515,60]
[420680736,1776457919188,-1200.0,0.00033515,60]
[420680737,1776457919197,-700.0,0.00033515,60]
[420680738,1776457919206,-600.0,0.00033515,60]
[420680739,1776457919216,-1200.0,0.00033515,60]
[420680740,1776457919225,-700.0,0.00033515,60]
[420680741,1776457919235,-600.0,0.00033515,60]
[420680742,1776457919244,-1200.0,0.00033515,60]
[420680743,1776457919253,-600.0,0.00033515,60]
[420680744,1776457919263,-700.0,0.00033515,60]
[420680745,1776457919272,-1200.0,0.00033515,60]
[420680746,1776457919281,-700.0,0.00033515,60]
[420680747,1776457919291,-600.0,0.00033515,60]
[420680748,1776457919300,-1400.4391959,0.00033515,60]
[420680749,1776457919309,-600.0,0.00033515,60]
[420680750,1776457919318,-700.0,0.00033515,60]
[420680751,1776457919327,-600.0,0.00033515,60]
[420680752,1776457919336,-700.0,0.00033515,60]
[420680753,1776457919345,-700.0,0.00033515,60]
[420680754,1776457919354,-600.0,0.00033515,60]
[420680755,1776457919363,-700.0,0.00033515,60]
[420680756,1776457919372,-500.0,0.00033515,60]
[420680757,1776457919382,-600.0,0.00033515,60]
[420680758,1776457919391,-700.0,0.00033515,60]
[420680759,1776457919399,-500.0,0.00033515,60]
[420680760,1776457919408,-608.2997892,0.00033515,60]
[420680761,1776457919417,-700.0,0.00033515,60]
[420680762,1776457919427,-500.0,0.00033515,60]
[420680763,1776457919435,-700.0,0.00033515,60]
[420680764,1776457919445,-500.0,0.00033515,60]
[420680765,1776457919455,-700.0,0.00033515,60]
[420680766,1776457919465,-500.0,0.00033515,60]
[420680767,1776457919475,-700.0,0.00033515,60]
[420680768,1776457919484,-500.0,0.00033515,60]
[420680769,1776457919494,-1093.161217,0.00033515,60]
[420680770,1776457919503,-500.0,0.00033515,60]
[420680771,1776457919513,-500.0,0.00033515,60]
[420680772,1776457919522,-500.0,0.00033515,60]
[420680773,1776457919531,-500.0,0.00033515,60]
[420680774,1776457919541,-500.0,0.00033515,60]
[420680775,1776457919550,-500.0,0.00033515,60]
[420680776,1776457919559,-500.0,0.00033515,60]
[420680777,1776457919568,-500.0,0.00033515,60]
[420680778,1776457919577,-500.0,0.00033515,60]
[420680779,1776457919708,-500.0,0.00033515,60]
[420680780,1776457919718,-500.0,0.00033515,60]
[420680781,1776457919727,-500.0,0.00033515,60]
[420680782,1776457919737,-500.0,0.00033515,60]
[420680783,1776457919746,-500.0,0.00033515,60]
[420680784,1776457919755,-500.0,0.00033515,60]
[420680785,1776457919764,-500.0,0.00033515,60]
[420680786,1776457919773,-936.1247191,0.00033515,60]
[420680787,1776457919783,-250.0,0.00033515,60]
[420680788,1776457919792,-250.35,0.00033515,60]
[420680789,1776457919801,-250.0,0.00033515,60]
[420680790,1776457919810,-794.0795675,0.00033515,60]
[420680791,1776457919822,-500.0,0.00033515,60]
[420680792,1776457919831,-500.0,0.00033515,60]
[420680793,1776457919840,-500.0,0.00033515,60]
[420680794,1776457919849,-250.0,0.00033515,60]
[420680795,1776457919859,-500.0,0.00033515,60]
[420680796,1776457919868,-250.0,0.00033515,60]
[420680797,1776457919877,-500.0,0.00033515,60]
[420680798,1776457919887,-500.0,0.00033515,60]
[420680799,1776457919896,-548.4073818,0.00033515,60]
[420680800,1776457919906,-250.0,0.00033515,60]
[420680801,1776457919915,-209.129946,0.00033515,60]
[420680802,1776457919925,-251.25,0.00033515,60]
[420680803,1776457919935,-500.0,0.00033566,5]
[420680804,1776457919944,-1041.12,0.00033587,120]
[420680805,1776457919954,-300.0,0.00033616,2]
[420680806,1776457919964,-1101.4,0.00033628,5]
[420680807,1776457919973,-500.0,0.0003363,120]
[420680808,1776457919982,-240.0,0.00033648,31]
[420680809,1776457919992,-676.0,0.00033652,19]
[420680810,1776457920002,-36255.0,0.00033655,2]
[420680811,1776457920011,-150.0,0.00033833,2]
[420680812,1776457920020,-1357.82,0.00033863,2]
[420680813,1776457920030,-150.0,0.00033896,2]
[420680814,1776457920040,-1041.12,0.00033913,120]
[420680815,1776457920049,-500.0,0.00033938,2]
[420680816,1776457920059,-2000.0,0.00033938,2]
[420680817,1776457920069,-2196.95582961,0.00034,5]
[420680818,1776457920079,-1829.4167244,0.00034,35]
[420680819,1776457920089,-21032.9976068,0.00034,4]
[420680820,1776457920099,-3878.95447098,0.00034134,120]
[420680821,1776457920108,-163.99782091,0.00034134,120]
[420680822,1776457920118,-1316.48,0.000342,30]
[420680823,1776457920127,-4301.01,0.000342,30]
[420680824,1776457920137,-600.0,0.00034212,120]
[420680825,1776457920146,-500.0,0.00034226,120]
[420680826,1776457920155,-1041.12,0.00034239,120]
[420680827,1776457920164,-150.0,0.00034247,10]
[420680828,1776457920174,-155.0,0.00034247,120]
[420680829,1776457920183,-191.0,0.00034247,120]
[420680830,1776457920192,-250.0,0.00034247,120]
[420680831,1776457920202,-372.0,0.00034247,120]
[420680832,1776457920211,-150.0,0.00034247,2]
[420680833,1776457920220,-276.0,0.00034247,2]
[420680834,1776457920230,-500.0,0.00034247,2]
[420680835,1776457920239,-500.0,0.00034247,2]
[420680836,1776457920248,-390.0,0.00034247,2]
[420680837,1776457920257,-200.0,0.00034247,2]
[420680838,1776457920266,-200.0,0.00034247,2]
[420680839,1776457920275,-184.0,0.00034247,2]
[420680840,1776457920286,-1058.7,0.0003425,12]
[420680841,1776457920296,-5007.0,0.00034269,2]
[420680842,1776457920305,-796.4326,0.000343,20]
[420680843,1776457920315,-1985.863,0.000343,20]
[420680844,1776457920324,-1985.863,0.000343,20]
[420680845,1776457920334,-330.1876,0.000343,20]
[420680846,1776457920343,-1636.0,0.00034319,30]
[420680847,1776457920352,-3218.0,0.00034319,30]
[420680848,1776457920362,-3343.0,0.00034319,30]
[420680849,1776457920371,-781.0,0.00034319,30]
[420680850,1776457920380,-531.0,0.00034319,30]
[420680851,1776457920389,-2889.0,0.00034319,30]
[420680852,1776457920399,-1242.0,0.00034319,30]
[420680853,1776457920408,-957.0,0.00034319,30]
[420680854,1776457920418,-676.0,0.00034323,20]
[420680855,1776457920427,-1126.0,0.00034349,30]
[420680856,1776457920437,-430.0,0.00034349,30]
[420680857,1776457920447,-364.20665752,0.00034444,30]
[420680858,1776457920456,-750.0,0.00034462,2]
[420680859,1776457920465,-1750.79199862,0.0003449,2]
[420680860,1776457920475,-433.0,0.0003449,10]
[420680861,1776457920485,-5000.0,0.000345,14]
[420680862,1776457920494,-500.0,0.00034534,120]
[420680863,1776457920503,-500.0,0.0003455,45]
[420680864,1776457920513,-500.0,0.0003455,45]
[420680865,1776457920523,-1041.12,0.00034565,120]
[420680866,1776457920533,-1357.82,0.00034575,2]
[420680867,1776457920542,-1101.4,0.0003458,5]
[420680868,1776457920552,-965.55,0.000346,20]
[420680869,1776457920561,-965.55,0.000346,20]
[420680870,1776457920575,-1351.77,0.000346,30]
[420680871,1776457920585,-1505.1720283,0.000346,30]
[420680872,1776457920594,-1000.0,0.00034645,2]
[420680873,1776457920604,-1000.0,0.00034645,2]
[420680874,1776457920614,-1000.0,0.00034645,2]
[420680875,1776457920624,-1000.0,0.00034645,2]
[420680876,1776457920634,-1000.0,0.00034645,2]
[420680877,1776457920643,-1000.0,0.000347,2]
[420680878,1776457920653,-1000.0,0.000347,2]
[420680879,1776457920663,-1000.0,0.000347,2]
[420680880,1776457920672,-1000.0,0.000347,2]
[420680881,1776457920682,-1000.0,0.000347,2]
[420680882,1776457920692,-1612.44,0.00034712,30]
[420680883,1776457920702,-671.22,0.00034712,30]
[420680884,1776457920711,-7386.42,0.00034712,30]
[420680885,1776457920721,-1500.0,0.00034795,2]
[420680886,1776457920730,-177.5,0.000348,5]
[420680887,1776457920740,-150.0,0.00034833,2]
[420680888,1776457920750,-250.4914,0.00034839,2]
[420680889,1776457920760,-1444.0,0.00034849,120]
[420680890,1776457920769,-209.0,0.0003488,30]
[420680891,1776457920778,-1041.12,0.00034891,120]
[420680892,1776457920788,-150.349707,0.00034971,2]
[420680893,1776457920797,-676.0,0.00034995,20]
[420680894,1776457920810,-200.0,0.00035,7]
[420680895,1776457920819,-1939.08705694,0.00035,2]
[420680896,1776457920828,-500.0,0.00035,2]
[420680897,1776457920839,-1000.0,0.00035,12]
[420680898,1776457920848,-300.0,0.00035,30]
[420680899,1776457920859,-334.0,0.00035,30]
[420680900,1776457920869,-2856.54357597,0.00035,30]
[420680901,1776457920878,-9661.03052883,0.00035,30]
[420680902,1776457920888,-101000.0,0.00035,30]
[420680903,1776457920898,-340000.0,0.00035,4]
[420680904,1776457920908,-1000.0,0.00035,7]
[420680905,1776457920917,-323.0,0.00035,2]
[420680906,1776457920927,-401.28703208,0.00035,2]
[420680907,1776457920937,-151.0,0.00035,7]
[420680908,1776457920946,-500.0,0.00035,50]
[420680909,1776457920956,-600.82198708,0.00035,15]
[420680910,1776457920965,-150.93,0.00035,2]
[420680911,1776457920975,-2058.56171977,0.00035,2]
[420680912,1776457920984,-192.32771452,0.00035,30]
[420680913,1776457920994,-150.0,0.00035,2]
[420680914,1776457921004,-179.319,0.00035,2]
[420680915,1776457921013,-5000.0,0.00035,20]
[420680916,1776457921023,-500.0,0.00035014,5]
[420680917,1776457921034,-5000.0,0.00035106,30]
[420680918,1776457921043,-1041.12,0.00035217,120]
[420680919,1776457921053,-5007.0,0.00035254,2]
[420680920,1776457921062,-1357.82,0.00035287,2]
[420680921,1776457921072,-1636.0,0.00035319,30]
[420680922,1776457921083,-3218.0,0.00035319,30]
[420680923,1776457921095,-3343.0,0.00035319,30]
[420680924,1776457921104,-781.0,0.00035319,30]
[420680925,1776457921115,-531.0,0.00035319,30]
[420680926,1776457921126,-2889.0,0.00035319,30]
[420680927,1776457921136,-1242.0,0.00035319,30]
[420680928,1776457921147,-957.0,0.00035319,30]
[420680929,1776457921156,-1126.0,0.00035349,30]
[420680930,1776457921166,-430.0,0.00035349,30]
[420680931,1776457921175,-500.0,0.00035438,120]
[420680932,1776457921185,-1101.4,0.00035533,5]
[420680933,1776457921194,-1041.12,0.00035543,120]
[420680934,1776457921203,-1366.718,0.000356,30]
[420680935,1776457921213,-1366.71,0.000356,30]
[420680936,1776457921222,-179.46875328,0.000356,30]
[420680937,1776457921231,-149834.04424439,0.0003561,2]
[420680938,1776457921241,-4481.5955113,0.0003561,2]
[420680939,1776457921251,-19920.85885383,0.0003561,2]
[420680940,1776457921260,-153.99,0.00035616,30]
[420680941,1776457921270,-1000.0,0.00035616,120]
[420680942,1776457921279,-600.0,0.00035616,15]
[420680943,1776457921289,-151.0,0.00035616,7]
[420680944,1776457921298,-151.0,0.00035616,7]
[420680945,1776457921307,-151.0,0.00035616,7]
[420680946,1776457921316,-151.0,0.00035616,7]
[420680947,1776457921326,-214.090818,0.00035616,7]
[420680948,1776457921335,-572.016487,0.00035616,7]
[420680949,1776457921344,-572.016487,0.00035616,7]
[420680950,1776457921354,-572.016487,0.00035616,7]
[420680951,1776457921363,-572.016487,0.00035616,7]
[420680952,1776457921373,-572.016487,0.00035616,7]
[420680953,1776457921382,-572.016487,0.00035616,7]
[420680954,1776457921391,-572.016487,0.00035616,7]
[420680955,1776457921400,-572.016487,0.00035616,7]
[420680956,1776457921410,-572.016487,0.00035616,7]
[420680957,1776457921419,-572.016487,0.00035616,7]
[420680958,1776457921428,-572.016487,0.00035616,7]
[420680959,1776457921438,-572.016487,0.00035616,7]
[420680960,1776457921450,-572.016487,0.00035616,7]
[420680961,1776457921460,-572.016487,0.00035616,7]
[420680962,1776457921468,-572.016487,0.00035616,7]
[420680963,1776457921478,-572.016487,0.00035616,7]
[420680964,1776457921487,-572.016487,0.00035616,7]
[420680965,1776457921496,-572.016487,0.00035616,7]
[420680966,1776457921506,-572.016487,0.00035616,7]
[420680967,1776457921515,-572.016493,0.00035616,7]
[420680968,1776457921524,-150.0,0.00035616,30]
[420680969,1776457921534,-171.0,0.00035616,30]
[420680970,1776457921543,-217.0,0.00035616,30]
[420680971,1776457921552,-155.0,0.00035616,30]
[420680972,1776457921562,-208.0,0.00035616,30]
[420680973,1776457921571,-199.0,0.00035616,30]
[420680974,1776457921582,-3211.41,0.00035622,30]
[420680975,1776457921593,-676.0,0.00035667,21]
[420680976,1776457921604,-825.0,0.00035679,90]
[420680977,1776457921613,-250.0,0.00035758,7]
[420680978,1776457921622,-250.0,0.00035758,7]
[420680979,1776457921632,-250.0,0.00035758,7]
[420680980,1776457921642,-250.0,0.00035758,7]
[420680981,1776457921651,-250.0,0.00035758,7]
[420680982,1776457921661,-150.0,0.00035833,2]
[420680983,1776457921671,-150.0,0.00035852,23]
[420680984,1776457921681,-1041.12,0.0003587,120]
[420680985,1776457921691,-500000.0,0.00035875,30]
[420680986,1776457921701,-252.23605111,0.00035991,7]
[420680987,1776457921711,-500.0,0.00036,7]
[420680988,1776457921721,-1111.0,0.00036,30]
[420680989,1776457921730,-454.4381255,0.00036,7]
[420680990,1776457921739,-1000.0,0.00036,7]
[420680991,1776457921749,-500.0,0.00036,7]
[420680992,1776457921758,-1095.46117589,0.00036,2]
[420680993,1776457922146,-1357.82,0.00036,2]
[420680994,1776457922160,-1000.0,0.0003611,5]
[420680995,1776457922171,-81966.12381037,0.0003613,3]
[420680996,1776457922181,-1716.93,0.00036168,10]
[420680997,1776457922191,-1041.12,0.00036196,120]
[420680998,1776457922202,-500.0,0.00036205,120]
[420680999,1776457922213,-195.70213156,0.00036209,2]
[420681000,1776457922224,-5007.0,0.00036239,20]
[420681001,1776457922234,-1636.0,0.00036319,30]
[420681002,1776457922244,-3218.0,0.00036319,30]
[420681003,1776457922254,-3343.0,0.00036319,30]
[420681004,1776457922264,-781.0,0.00036319,30]
[420681005,1776457922273,-531.0,0.00036319,30]
[420681006,1776457922282,-2889.0,0.00036319,30]
[420681007,1776457922292,-1242.0,0.00036319,30]
[420681008,1776457922302,-957.0,0.00036319,30]
[420681009,1776457922312,-676.0,0.00036338,21]
[420681010,1776457922322,-1126.0,0.00036349,30]
[420681011,1776457922333,-430.0,0.00036349,30]
[420681012,1776457922343,-257.76,0.00036454,10]
[420681013,1776457922352,-1101.4,0.00036486,7]
[420681014,1776457922363,-1041.12,0.00036522,120]
[420681015,1776457922375,-954.91,0.00036537,10]
[420681016,1776457922386,-2646.73,0.0003656,14]
[420681017,1776457922396,-208.0,0.000366,17]
[420681018,1776457922406,-2600.253,0.00036603,45]
[420681019,1776457922416,-181.453,0.00036603,45]
[420681020,1776457922426,-492.69,0.00036622,10]
[420681021,1776457922435,-364.20665752,0.00036667,30]
[420681022,1776457922445,-1357.82,0.00036712,2]
[420681023,1776457922455,-417.03,0.00036741,10]
[420681024,1776457922464,-500.0,0.00036742,5]
[420681025,1776457922473,-2000.0,0.00036742,5]
[420681026,1776457922483,-1628.93432467,0.000368,2]
[420681027,1776457922492,-296.1334439,0.00036822,2]
[420681028,1776457922503,-5000.0,0.00036833,2]
[420681029,1776457922514,-712.51,0.00036844,10]
[420681030,1776457922525,-1041.12,0.00036848,120]
[420681031,1776457922534,-1146.8,0.00036875,10]
[420681032,1776457922544,-209.0,0.0003689,30]
[420681033,1776457922553,-500.0,0.00036903,2]
[420681034,1776457922562,-1610.54,0.00036916,10]
[420681035,1776457922571,-677.75,0.00036963,10]
[420681036,1776457922580,-500.0,0.00036973,120]
[420681037,1776457922590,-600.0,0.00036986,30]
[420681038,1776457922599,-2000.0,0.00037,2]
[420681039,1776457922608,-365.0,0.00037,2]
[420681040,1776457922618,-167.55080011,0.00037,2]
[420681041,1776457922627,-1002.11735823,0.00037,2]
[420681042,1776457922637,-4500.0,0.00037,2]
[420681043,1776457922648,-1000.0,0.00037,30]
[420681044,1776457922659,-1000.0,0.00037,12]
[420681045,1776457922668,-1675.0,0.00037,7]
[420681046,1776457922678,-236.0,0.00037,21]
[420681047,1776457922687,-171.0,0.00037,30]
[420681048,1776457922698,-676.0,0.0003701,22]
[420681049,1776457922707,-894.53,0.00037092,90]
[420681050,1776457922717,-11725.00390429,0.000371,2]
[420681051,1776457922727,-169174.67651058,0.000371,2]
[420681052,1776457922737,-274.04,0.00037168,7]
[420681053,1776457922747,-1041.12,0.00037174,120]
[420681054,1776457922756,-5892.47834122,0.000372,120]
[420681055,1776457922766,-5892.47834118,0.000372,120]
[420681056,1776457922776,-5892.47834118,0.000372,120]
[420681057,1776457922786,-5892.47834118,0.000372,120]
[420681058,1776457922795,-5892.47834118,0.000372,120]
[420681059,1776457922805,-1500.0,0.00037205,5]
[420681060,1776457922815,-5007.0,0.00037223,20]
[420681061,1776457922825,-449.98138437,0.0003731,120]
[420681062,1776457922835,-1636.0,0.00037319,30]
[420681063,1776457922845,-3218.0,0.00037319,30]
[420681064,1776457922854,-3343.0,0.00037319,30]
[420681065,1776457922863,-781.0,0.00037319,30]
[420681066,1776457922873,-531.0,0.00037319,30]
[420681067,1776457922882,-2889.0,0.00037319,30]
[420681068,1776457922892,-1242.0,0.00037319,30]
[420681069,1776457922901,-957.0,0.00037319,30]
[420681070,1776457922910,-1126.0,0.00037349,30]
[420681071,1776457922920,-430.0,0.00037349,30]
[420681072,1776457922929,-1357.82,0.00037424,2]
[420681073,1776457922939,-1101.4,0.00037438,7]
[420681074,1776457922949,-1041.12,0.000375,120]
[420681075,1776457922958,-1000.0,0.000375,2]
[420681076,1776457922968,-4383.52426483,0.0003759,2]
[420681077,1776457922979,-500.0,0.00037618,120]
[420681078,1776457922990,-200.0,0.0003767,6]
[420681079,1776457923000,-177.673315,0.00037675,45]
[420681080,1776457923010,-676.0,0.00037682,23]
[420681081,1776457923021,-229.15992858,0.00037692,18]
[420681082,1776457923031,-200.0,0.00037768,6]
[420681083,1776457923041,-200.0,0.00037769,6]
[420681084,1776457923050,-200.0,0.00037769,6]
[420681085,1776457923060,-200.0,0.00037769,6]
[420681086,1776457923069,-500.0,0.00037795,120]
[420681087,1776457923080,-1477.57554611,0.0003781,30]
[420681088,1776457923091,-1477.57554611,0.0003781,30]
[420681089,1776457923102,-1477.57554611,0.0003781,30]
[420681090,1776457923112,-1477.57554611,0.0003781,30]
[420681091,1776457923121,-1477.57554611,0.0003781,30]
[420681092,1776457923131,-1477.57554611,0.0003781,30]
[420681093,1776457923141,-1477.57554611,0.0003781,30]
[420681094,1776457923150,-1477.57554611,0.0003781,30]
[420681095,1776457923160,-1477.57554611,0.0003781,30]
[420681096,1776457923169,-1477.57554611,0.0003781,30]
[420681097,1776457923179,-1477.57554611,0.0003781,30]
[420681098,1776457923188,-1477.57554611,0.0003781,30]
[420681099,1776457923198,-1477.57554611,0.0003781,30]
[420681100,1776457923207,-1477.57554611,0.0003781,30]
[420681101,1776457923217,-1477.57554611,0.0003781,30]
[420681102,1776457923226,-1477.57554611,0.0003781,30]
[420681103,1776457923237,-1477.57554611,0.0003781,30]
[420681104,1776457923246,-1477.57554611,0.0003781,30]
[420681105,1776457923256,-1477.57554611,0.0003781,30]
[420681106,1776457923265,-1477.57,0.0003781,30]
[420681107,1776457923274,-3447.67627425,0.0003781,30]
[420681108,1776457923284,-3447.67627425,0.0003781,30]
[420681109,1776457923294,-3447.67627425,0.0003781,30]
[420681110,1776457923303,-3447.67627425,0.0003781,30]
[420681111,1776457923313,-3447.67627425,0.0003781,30]
[420681112,1776457923324,-3447.67627425,0.0003781,30]
[420681113,1776457923334,-3447.67627425,0.0003781,30]
[420681114,1776457923344,-3447.67627425,0.0003781,30]
[420681115,1776457923355,-3447.67627425,0.0003781,30]
[420681116,1776457923365,-3447.67627425,0.0003781,30]
[420681117,1776457923376,-3447.67627425,0.0003781,30]
[420681118,1776457923387,-3447.67627425,0.0003781,30]
[420681119,1776457923396,-3447.67627425,0.0003781,30]
[420681120,1776457923405,-3447.67627425,0.0003781,30]
[420681121,1776457923414,-3447.67627425,0.0003781,30]
[420681122,1776457923424,-3447.67627425,0.0003781,30]
[420681123,1776457923433,-3447.67627425,0.0003781,30]
[420681124,1776457923442,-3447.67627425,0.0003781,30]
[420681125,1776457923452,-3447.67627425,0.0003781,30]
[420681126,1776457923461,-3447.67,0.0003781,30]
[420681127,1776457923471,-716.94117902,0.0003781,30]
[420681128,1776457923480,-716.94117902,0.0003781,30]
[420681129,1776457923491,-716.94117902,0.0003781,30]
[420681130,1776457923500,-716.94117902,0.0003781,30]
[420681131,1776457923509,-716.94117902,0.0003781,30]
[420681132,1776457923518,-716.94117902,0.0003781,30]
[420681133,1776457923528,-716.94117902,0.0003781,30]
[420681134,1776457923538,-716.94117902,0.0003781,30]
[420681135,1776457923547,-716.94117902,0.0003781,30]
[420681136,1776457923558,-716.94117902,0.0003781,30]
[420681137,1776457923568,-716.94117902,0.0003781,30]
[420681138,1776457923578,-716.94117902,0.0003781,30]
[420681139,1776457923587,-716.94117902,0.0003781,30]
[420681140,1776457923597,-716.94117902,0.0003781,30]
[420681141,1776457923606,-716.94117902,0.0003781,30]
[420681142,1776457923616,-716.94117902,0.0003781,30]
[420681143,1776457923625,-716.94117902,0.0003781,30]
[420681144,1776457923635,-716.94117902,0.0003781,30]
[420681145,1776457923644,-716.94117902,0.0003781,30]
[420681146,1776457923653,-716.94,0.0003781,30]
[420681147,1776457923663,-1672.86275104,0.0003781,30]
[420681148,1776457923672,-1672.86275104,0.0003781,30]
[420681149,1776457923682,-1672.86275104,0.0003781,30]
[420681150,1776457923691,-1672.86275104,0.0003781,30]
[420681151,1776457923700,-1672.86275104,0.0003781,30]
[420681152,1776457923710,-1672.86275104,0.0003781,30]
[420681153,1776457923719,-1672.86275104,0.0003781,30]
[420681154,1776457923728,-1672.86275104,0.0003781,30]
[420681155,1776457923739,-1672.86275104,0.0003781,30]
[420681156,1776457923749,-1672.86275104,0.0003781,30]
[420681157,1776457923758,-1672.86275104,0.0003781,30]
[420681158,1776457923768,-1672.86275104,0.0003781,30]
[420681159,1776457923777,-1672.86275104,0.0003781,30]
[420681160,1776457923787,-1672.86275104,0.0003781,30]
[420681161,1776457923802,-1672.86275104,0.0003781,30]
[420681162,1776457923811,-1672.86275104,0.0003781,30]
[420681163,1776457923820,-1672.86275104,0.0003781,30]
[420681164,1776457923830,-1672.86275104,0.0003781,30]
[420681165,1776457923839,-1672.86275104,0.0003781,30]
[420681166,1776457923849,-1672.86,0.0003781,30]
[420681167,1776457923859,-150.0,0.00037833,2]
[420681168,1776457923870,-5000.0,0.00037834,2]
[420681169,1776457923881,-200.0,0.00037865,6]
[420681170,1776457923892,-204.54639488,0.0003788,2]
[420681171,1776457923902,-825.0,0.00037919,90]
[420681172,1776457923912,-200.0,0.00037959,6]
[420681173,1776457923921,-170.379697,0.0003797,23]
[420681174,1776457923930,-220.36554245,0.00038,7]
[420681175,1776457923944,-2010.0,0.00038,30]
[420681176,1776457923953,-170.79621873,0.00038,3]
[420681177,1776457923962,-3000.0,0.00038,2]
[420681178,1776457923971,-3000.0,0.00038,2]
[420681179,1776457923981,-3000.0,0.00038,2]
[420681180,1776457923992,-3000.0,0.00038,2]
[420681181,1776457924001,-3000.0,0.00038,2]
[420681182,1776457924011,-3000.0,0.00038,2]
[420681183,1776457924020,-3000.0,0.00038,2]
[420681184,1776457924030,-3000.0,0.00038,2]
[420681185,1776457924040,-1000.0,0.00038,30]
[420681186,1776457924049,-1000.0,0.00038,3]
[420681187,1776457924059,-3658.478,0.00038,7]
[420681188,1776457924069,-700.0,0.00038,30]
[420681189,1776457924078,-1000.0,0.00038,30]
[420681190,1776457924088,-538.48921409,0.00038,30]
[420681191,1776457924097,-501.08,0.00038,50]
[420681192,1776457924106,-500.0,0.00038,50]
[420681193,1776457924116,-3055.87974618,0.00038,30]
[420681194,1776457924126,-600.0,0.00038014,120]
[420681195,1776457924137,-2777.14,0.00038034,30]
[420681196,1776457924146,-346.89,0.00038034,30]
[420681197,1776457924156,-200.0,0.0003805,6]
[420681198,1776457924166,-267.54977155,0.000381,33]
[420681199,1776457924176,-280.05539353,0.000381,33]
[420681200,1776457924187,-520.12479719,0.000381,33]
[420681201,1776457924196,-357.97413099,0.000381,33]
[420681202,1776457924207,-244.51405798,0.000381,33]
[420681203,1776457924216,-2000.0,0.000381,2]
[420681204,1776457924228,-422.21884229,0.00038105,2]